Cogmind - Beta 13 @@@ ROGUE MODE // 2024.04.01 @ 19:22:53 Player: Olafz Result: Destroyed by D-53 Grenadier with Mini Grenade Launcher Performance ------------- Evolutions (0) 0 Regions Visited (2) 400 Robots Destroyed (15) 75 Value Destroyed (189) 189 Prototype IDs (0) 0 Alien Tech Used (0) 0 Bonus (-11) -11 TOTAL SCORE: 653 Bonus ------- Friendly Fire -11 Cogmind --------- Core Integrity 0/250 Matter 290/300 Energy 95/100 System Corruption 13% Temperature Cool (2) Movement Walking (120) Location -10/Mines Parts ------- > --- POWER (1) -------- (None) > --- PROPULSION (2) --- Aluminum Leg Aluminum Leg > --- UTILITY (2) ------ Armor Integrity Analyzer > --- WEAPON (2) ------- (None) > --- INVENTORY (5) ---- Flight Unit Small Storage Unit Weight Redist. System Visual Processing Unit Peak State ------------ > --- POWER ------------ Light Ion Engine > --- PROPULSION ------- Light Treads Light Treads > --- UTILITY ---------- Weight Redist. System Visual Processing Unit > --- WEAPON ----------- EM Pulse Gun Assault Rifle > --- INVENTORY -------- Light Ion Engine Small Storage Unit [Rating: 9] Favorites ----------- Power Light Ion Engine Engine Light Ion Engine Propulsion Light Treads Treads Light Treads Leg Aluminum Leg Flight Unit Flight Unit Utility Weight Redist. System Device Weight Redist. System Storage Small Storage Unit Processor Visual Processing Unit Weapon Assault Rifle Energy Gun EM Pulse Gun Ballistic Gun Assault Rifle Build | -11 -10 -10 ------- Run | Yrd Mat Min Slots Evolved . | . . . Power . | . . . Propulsion . | . . . Utility . | . . . Weapon . | . . . Parts Attached 17 | 6 6 5 Power 3 | 1 1 1 Engine 3 | 1 1 1 Core . | . . . Reactor . | . . . Propulsion 7 | 2 2 3 Treads 2 | 2 . . Leg 2 | . . 2 Wheel . | . . . Hover . | . . . Flight 3 | . 2 1 Utility 4 | 1 2 1 Device 1 | . 1 . Storage 1 | 1 . . Processor 2 | . 1 1 Hackware . | . . . Protection . | . . . Artifact . | . . . Weapon 3 | 2 1 . Energy Gun 1 | 1 . . Energy Cannon . | . . . Ballistic Gun 2 | 1 1 . Ballistic Cannon . | . . . Launcher . | . . . Special Weapon . | . . . Impact Weapon . | . . . Slashing Weapon . | . . . Piercing Weapon . | . . . Special Melee Weapon . | . . . Unidentified Prototypes . | . . . Parts Lost 8 | . 1 7 Power 1 | . . 1 Propulsion 3 | . 1 2 Utility 2 | . . 2 Weapon 2 | . . 2 Highest Loss Streak 7 | . 1 7 To Critical Strikes . | . . . Average Slot Usage (%) 87 | . 95 76 Engine 11 | . 14 8 Treads 15 | . 24 . Leg 1 | . . 2 Flight 9 | . 1 22 Device 11 | . 11 10 Storage 1 | . 2 . Processor 11 | . 11 11 Energy Gun 3 | . 6 . Ballistic Gun 20 | . 21 19 Naked Turns . | . . . Heaviest Build 12 | 12 12 7 Greatest Support 46 | 40 46 20 Greatest Overweight (x) . | . . . Average Overweight (x) . | . . . Largest Inventory Capacity 8 | 8 8 5 Average Capacity 5 | 7 5 5 Most Carried 5 | 1 5 5 Average Carried 3 | . 3 4 Final Capacity 8 | 8 5 5 Final Carried 5 | 1 5 4 Class Distribution -------------------- 100% | Mutant Dominant Class ---------------- Mutant | -10/Materials Mutant | -10/Mines Resources | -11 -10 -10 ----------- Run | Yrd Mat Min Matter Collected 610 | 173 341 96 Remotely . | . . . Salvage Created 510 | 109 357 44 Parts 32 | 4 21 7 Haulers Intercepted 1 | . 1 . Recyclers Shooed 1 | . 1 . Parts Field Recycled . | . . . Retrieved Matter . | . . . Parts Self-Destructed . | . . . Prevented . | . . . Kills | -11 -10 -10 ------- Run | Yrd Mat Min Combat Hostiles Destroyed 8 | . 5 3 Guns 8 | . 5 3 Classes Destroyed 6 | 2 4 . Worker 3 | . 3 . Tunneler 1 | 1 . . Hauler 1 | . 1 . Recycler 2 | 1 1 . Swarmer 5 | . 2 3 Grunt 3 | . 3 . Best Kill Streak 5 | 2 5 3 Combat Bots Only 4 | . 4 3 Max Kills in Single Turn 1 | 1 1 1 Gunslinging . | . . . Exploded . | . . . Melee . | . . . Uniques/NPCs Destroyed . | . . . Combat | -11 -10 -10 -------- Run | Yrd Mat Min Hostile Shots Fired 90 | . 53 37 Missed 27 | . 15 12 Damage Taken 980 | . 427 553 Core 252 | . 20 232 Absorbed by Shields . | . . . Core Remaining (%) 100 | 100 . . Volleys Fired 55 | 7 34 14 Largest 2 | 2 2 2 Hottest 60 | 60 60 40 Shots Fired 106 | 14 68 24 Gun 106 | 14 68 24 Cannon . | . . . Launcher . | . . . Special . | . . . Kinetic 94 | 7 63 24 Thermal . | . . . Explosive . | . . . Electromagnetic 12 | 7 5 . Robot Hit Streak 7 | 3 7 1 Robot Miss Streak 5 | 4 4 5 Penetration Max . | . . . Secondary Targets 5 | . 4 1 Max Gunslinging Chain 1 | . 1 1 Shots Hit Robots 56 | 7 42 7 Core Hits 23 | 3 16 4 Critical Kills . | . . . Critical Parts Destroyed . | . . . Critical Strikes . | . . . Melee Attacks . | . . . Impact . | . . . Slashing . | . . . Piercing . | . . . Sneak Attacks . | . . . Combat Hostiles . | . . . Follow-up Attacks . | . . . Damage Inflicted 790 | 150 540 100 Guns 732 | 92 540 100 Cannons . | . . . Explosions 58 | 58 . . Melee . | . . . Ramming . | . . . Kinetic 596 | 10 486 100 Thermal 58 | 58 . . Explosive . | . . . Electromagnetic 136 | 82 54 . Impact . | . . . Slashing . | . . . Piercing . | . . . Highest Corruption 13 | . . 13 Average Corruption 11 | . . 11 Corruption Purged . | . . . Corruption Blocked . | . . . Effects 2 | . . 2 Matter Fused 1 | . . 1 Data Loss (minor) 1 | . . 1 Overload Shots . | . . . Overflow Damage . | . . . Projectiles . | . . . Explosions . | . . . Melee . | . . . Knockbacks . | . . . Impact . | . . . Kinetic . | . . . Secondary . | . . . Self-Inflicted Damage . | . . . Shots . | . . . Rammed . | . . . Targets Rammed . | . . . Kicked . | . . . Crushed . | . . . Highest Temperature 3 | . 3 3 Average Temperature 2 | . 2 3 Received Heat Transfer 224 | . 204 20 Siege Activations . | . . . Robots Corrupted . | . . . Combat Hostiles . | . . . Parts Fried . | . . . Impact Corruptions . | . . . Robots Melted . | . . . Combat Hostiles . | . . . Parts Melted . | . . . Heat Transferred 50 | 50 . . Parts Sabotaged . | . . . Parts Stolen . | . . . Parts Stripped . | . . . Power Chain Reactions 2 | 2 . . Alert | -11 -10 -10 ------- Run | Yrd Mat Min Peak Influence 183 | 10 183 148 Initial 70 | . 6 70 Average 66 | 1 67 100 Maximum Alert Level . | . . . Low Security (%) 100 | 100 100 100 Level 1 . | . . . Level 2 . | . . . Level 3 . | . . . Level 4 . | . . . Level 5 . | . . . High Security . | . . . Max Security . | . . . Squads Dispatched 1 | . 1 . Investigation . | . . . Extermination . | . . . Reinforcement 1 | . 1 . Assault . | . . . Garrison . | . . . Intercept . | . . . Searches Triggered . | . . . Construction Impeded . | . . . Haulers Reinforced . | . . . Active Scanning Responses . | . . . Cargo Convoy Interrupts . | . . . Stealth | -11 -10 -10 --------- Run | Yrd Mat Min Distress Signals . | . . . Communications Jammed . | . . . Distress Signals . | . . . Times Spotted 31 | . 11 20 Peak Tracking Total 13 | . 5 13 Tactical Retreats 2 | . . 2 Traps | -11 -10 -10 ------- Run | Yrd Mat Min Traps Triggered . | . . . Indirectly . | . . . Trap Hack Attempts . | . . . Triggered . | . . . Disarmed . | . . . Reprogrammed . | . . . Reused . | . . . Traps Extracted . | . . . Installed . | . . . Triggered . | . . . Machines | -11 -10 -10 ---------- Run | Yrd Mat Min Machines Disabled . | . . . Max in Single Turn . | . . . Machines Repaired . | . . . Machines Dismantled . | . . . Machines Sabotaged . | . . . Overloaded Fab Kills . | . . . Hacking | -11 -10 -10 --------- Run | Yrd Mat Min Machines Accessed . | . . . Terminals . | . . . Fabricators . | . . . Repair Stations . | . . . Recycling Units . | . . . Scanalyzers . | . . . Garrison Access . | . . . Total Hacks . | . . . Successful . | . . . Failed . | . . . Catastrophic . | . . . Database Lockouts . | . . . Manual . | . . . Terminals . | . . . Fabricators . | . . . Repair Stations . | . . . Recycling Units . | . . . Scanalyzers . | . . . Garrison Access . | . . . Terminal Hacks . | . . . Fabricator Hacks . | . . . Repair Station Hacks . | . . . Recycling Unit Hacks . | . . . Scanalyzer . | . . . Garrison Access Hacks . | . . . Unauthorized Hacks . | . . . Terminals . | . . . Fabricators . | . . . Repair Stations . | . . . Recycling Units . | . . . Scanalyzers . | . . . Garrison Access . | . . . Data Cores Recovered . | . . . Used . | . . . Hacking Detections . | . . . Full Trace Events . | . . . Feedback Events . | . . . Feedback Blocked . | . . . Robot Schematics Acquired . | . . . Robots Built . | . . . Authchips . | . . . Time . | . . . Total Robot Build Rating . | . . . Part Schematics Acquired . | . . . Parts Built . | . . . Authchips . | . . . Time . | . . . Total Part Build Rating . | . . . Parts Repaired . | . . . Time . | . . . Parts Recycled . | . . . Recycled Matter . | . . . Retrieved Matter . | . . . Retrieved Components . | . . . Parts Scanalyzed . | . . . Part Schematics Acquired . | . . . Parts Damaged . | . . . Bothacking | -11 -10 -10 ------------ Run | Yrd Mat Min Used RIF Installer . | . . . Robots Hacked . | . . . Non-combat . | . . . Combat . | . . . Robot Hacks Applied . | . . . Relay Couplers Released . | . . . Fabnet Peak Effective % . | . . . Robots Rewired . | . . . Allies Hacked . | . . . Hacks Repelled . | . . . Allies | -11 -10 -10 -------- Run | Yrd Mat Min Total Allies 2 | . . 2 Largest Group 2 | . . 2 Highest-Rated Group 48 | . . 48 Highest-Rated Ally 31 | . . 31 Total Orders . | . . . Ally Attacks 6 | . . 6 Total Damage 42 | . . 42 Kills 1 | . . 1 Allies Corrupted . | . . . Allies Melted . | . . . Intel | -11 -10 -10 ------- Run | Yrd Mat Min Robot Analysis Total . | . . . Derelict Logs Recovered . | . . . Drone Launches . | . . . Drone Recoveries . | . . . Exploration | -11 -10 -10 ------------- Run | Yrd Mat Min Turns Passed 497 | 87 247 163 Spaces Moved 342 | 37 102 203 Core 5 | 2 3 . Treads 108 | 35 73 . Legs 16 | . . 16 Wheels . | . . . Hover . | . . . Flight 213 | . 26 187 Fastest Speed 37 | 50 37 37 Average Speed 80 | 154 125 44 Slowest Speed 160 | 160 160 120 Overloaded Moves . | . . . Propulsion Burnouts . | . . . Robots Hopped 5 | . . 5 Cave-ins Triggered . | . . . Exploration Rate (%) 21 | 4 27 33 Regions Visited 2 Branch Regions 1 Pre-discovered Areas . | . . . Known Exits Taken . | . . . Unknown Exits Taken 2 | 1 1 . Scrap Searched 1 | . . 1 Spaces Dug . | . . . Terrain Destroyed 7 | 7 . . Melee . | . . . Projectile . | . . . AOE 7 | 7 . . Terrain Rammed . | . . . Walls Destroyed . | . . . Machines Disabled . | . . . Actions | -11 -10 -10 --------- Run | Yrd Mat Min Total 450 | 50 152 248 Wait 28 | . . 28 Move 331 | 36 101 194 Hop 4 | . . 4 Pick Up 5 | 1 4 . Fast Attach 14 | 6 5 3 Attach 1 | . . 1 Detach 4 | . 3 1 Swap 2 | . 1 1 Drop 6 | . 4 2 Fire 55 | 7 34 14 Melee . | . . . Ram . | . . . Kick . | . . . Crush . | . . . Escape Stasis . | . . . Rewire . | . . . Trap . | . . . Miscellaneous . | . . . Route ------- -11/Scrapyard -10/Materials -10/Mines History --------- Turn | Location | Event 26 | -11/Scrapyard | Discovered new exit (range 16) 88 | -11/Scrapyard | Entered Materials 195 | -10/Materials | Discovered new exit (range 17) 310 | -10/Materials | Build established: Mutant 335 | -10/Materials | Entered Mines 364 | -10/Mines | Met a Derelict bent on vengeance 401 | -10/Mines | Assembled infested the area 406 | -10/Mines | Assisted by a Guerilla fighting off Assembled 454 | -10/Mines | System corruption reached 10% 469 | -10/Mines | Core integrity fell below 50% 475 | -10/Mines | Core integrity fell below 20% 486 | -10/Mines | Lost 7 parts (1p2n2u2w) 498 | -10/Mines | Destroyed by D-53 Grenadier with Mini Grenade Launcher Last Messages --------------- 00455_ Flight Unit destroyed. 00467_ Acquired Armor Integrity Analyzer. 00468_ Dropped Flight Unit. 00469_ as-68633 destroyed. 00469_ as-37790 destroyed. 00469_ as-13495 destroyed. 00470_ The unstable cave ceiling collapses. 00470_ Acquired 20 matter. 00471_ K-01 Serf collects debris. 00471_ Acquired 8 matter. 00472_ as-93355 destroyed. 00472_ as-59794 destroyed. 00472_ as-54833 destroyed. 00474_ as-15767 destroyed. 00476_ R-06 Scavenger collects Ion Engine. 00477_ Acquired Aluminum Leg. 00478_ Acquired 10 matter. 00479_ R-06 Scavenger collects Heat Sink. 00481_ Acquired Aluminum Leg. 00483_ R-06 Scavenger collects Aluminum Leg. Map ----- +----------------------------------------------------+ | | | | | ?????????????????????????????????????????????????? | | ?????????????????????????????????????????????????? | | ?????????????????????????????????????????????????? | | ??????????????????????????????????########???????? | | ?????????????????????????????###### #???????? | | ????????????????????????????## # ! #???????? | | ????????????????????????????# ! ##??????? | | ????????????????????????????# ! #??????? | | ????????????????????????????# # !! #??????? | | ????????????????????????????## ##??????? | | ??????????????????????#####??# #### #???????? | | ??????????????????????# ??# ##?## #???????? | | ?????????????????????# ??# #??# #???????? | | ?????????????????????? ??# #?# ##???????? | | ?????????????????????? ??# #?# ##????????? | | ??????????????????????? ??# #?# #?????????? | | ??????????????????????? #??#! #?## #?????????? | | ???????????????????????# #??# #??## ##?????????? | | ???????????????????????# #??# #???###??????????? | | ???????????????????????# #??# #????????????????? | | ??????????????????????## #### #?????????####???? | | ??????????????????????# # #?????##### ##??? | | ??????????????????????# #????## ##?? | | ???????????????????????# @ ###### ##? | | ???????????????????????# # ## | | ???????????????????????# | | ???????????????????????## | | ????????????????????????# % ##??? | | ??????????????###???????# # ## #??? | | ??????????????# #######%%##?? #??? | | ????????????? #???? # ! ##?? | | ????????????? d #### ### | | ????????????? d % %= % = # | | ????????????? ## % | | ????????????? # ####???## # | | ?????????????? #### #### #???????### * # | | ??????????????????## #??? ?????????# # | | ???????????????????## ###???? ????????# | | ????????????????????# ??????? ???????# ## =! | | ????????????????????#???????? ## ??????####?# ## | | ?????????????????????????????#??# ???????????##? | | ????????????????????????????????? ?????????????? | | ?????????????????????????????????# ????????????? | | ?????????????????????????????????? ##???????????? | | ??????????????????????????????????? ?????????????? | | ??????????????????????????????????? ?????????????? | | ?????????????????????????????????????????????????? | | ?????????????????????????????????????????????????? | +----------------------------------------------------+ Best States ------------- Heat Dissipation 25 Energy Generation 10 Energy Capacity 125 Matter Stores 300 Matter Capacity 300 Sight Range 18 Terrain Scan Density 10 Additional Mass Support 6 Evasion (%) 62 Armor Integrity Analysis 30 Recoil Reduction 2 Item Schematics ----------------- None Robot Schematics ------------------ None Fabricated ------------ Nothing Alien Tech Used ----------------- None Achievements -------------- None Challenges ------------ None Game ------ Seed ControlThermicLog Manual? 0 Play Time 00:13:02 Cumulative 10.1 hours Start 2024.04.01 @ 19:11:39 End 2024.04.01 @ 19:22:53 Sessions 1 Manual Loads 0 Difficulty Rogue Special Mode None Game No. 29 Rogue 27 Adventurer 2 Explorer 0 Win Type - Total 0 Types 0/0/0/0/0/0/0/0/0 Lore% 14 Gallery% 16 Achievement% 16 Wizard Run 0 Options --------- Layout 0 ASCII 0 Keyboard 1 Movement Arrows Keybinds 0 Fullscreen 2 Font 18/SmallcapsGlow Map View 76x50 Zoom Use 0% Tactical HUD 1 Map Filters NONE Filters NONE Steam 1 RUN: fff56c15-872b-4b81-98da-e732ac4c7301